Cogmind - Beta 9.6 @@@ ROGUE MODE // 2020.07.16 @ 12:42:04 Player: Lyft Result: Destroyed by 8R-AWN with 8R-AWN's Boregun Performance ------------- Evolutions (0) 0 Regions Visited (3) 600 Robots Destroyed (22) 110 Value Destroyed (278) 278 Prototype IDs (22) 440 Alien Tech Used (0) 0 Bonus (-416) -416 TOTAL SCORE: 1012 Bonus ------- Aligned with FarCom 300 Friendly Fire -716 Cogmind --------- Core Integrity 0/250 Matter 185/300 Energy 33/125 System Corruption 0% Temperature Cool (0) Movement Core (700) Ox13 Location -10/Exiles Parts ------- > --- POWER (1) -------- Light Ion Engine > --- PROPULSION (2) --- Compact Wheel > --- UTILITY (2) ------ High-capacity Storage Unit > --- WEAPON (2) ------- Shock Rifle Particle Cannon > --- INVENTORY (12) --- Ion Engine High-capacity Matter Pod (200) EM Pulse Gun Particle Cannon Guided Plasma Cannon YOLO Cannon Mini Grenade Launcher Peak State ------------ > --- POWER ------------ Light Ion Engine > --- PROPULSION ------- Light Treads Compact Wheel > --- UTILITY ---------- High-capacity Storage Unit 0b10 Alert Chip > --- WEAPON ----------- YOLO Cannon > --- INVENTORY -------- Ion Engine Heat Sink High-capacity Matter Pod EM Pulse Gun Shock Rifle Particle Cannon Particle Cannon Heavy Particle Cannon Guided Plasma Cannon Mini Grenade Launcher [Rating: 32] Favorites ----------- Power Ion Engine Engine Ion Engine Propulsion Compact Wheel Treads Light Treads Leg Aluminum Leg Wheel Compact Wheel Utility Large Storage Unit Device Heat Sink Storage Large Storage Unit Processor 0b10 Alert Chip Weapon Assault Rifle Energy Gun EM Pulse Gun Energy Cannon Particle Cannon Ballistic Gun Assault Rifle Build | -11 -10 -10 -10 ------- Run | Scr Mat Min Exi Slots Evolved . | . . . . Power . | . . . . Propulsion . | . . . . Utility . | . . . . Weapon . | . . . . Parts Attached 29 | 2 9 3 15 Power 3 | . 2 . 1 Engine 3 | . 2 . 1 Core . | . . . . Reactor . | . . . . Propulsion 6 | 2 2 1 1 Treads 3 | 1 1 . 1 Leg . | . . . . Wheel 3 | 1 1 1 . Hover . | . . . . Flight . | . . . . Utility 7 | . 2 . 5 Device 2 | . . . 2 Storage 4 | . 2 . 2 Processor 1 | . . . 1 Hackware . | . . . . Protection . | . . . . Artifact . | . . . . Weapon 13 | . 3 2 8 Energy Gun 3 | . . 1 2 Energy Cannon 8 | . 2 . 6 Ballistic Gun 2 | . 1 1 . Ballistic Cannon . | . . . . Launcher . | . . . . Special Weapon . | . . . . Impact Weapon . | . . . . Slashing Weapon . | . . . . Piercing Weapon . | . . . . Special Melee Weapon . | . . . . Unidentified Prototypes . | . . . . Parts Lost 7 | . . 4 3 Power . | . . . . Propulsion 2 | . . 1 1 Utility 1 | . . . 1 Weapon 4 | . . 3 1 Highest Loss Streak 3 | . . 2 3 Average Slot Usage (%) 82 | . 95 95 63 Engine 14 | . 14 14 14 Treads 9 | . 16 13 2 Wheel 13 | . 11 14 14 Storage 26 | . 24 28 25 Energy Gun 2 | . 1 7 . Energy Cannon 7 | . 12 5 4 Ballistic Gun 7 | . 13 10 . Naked Turns . | . . . . Heaviest Build 87 | 11 43 43 87 Greatest Support 40 | 16 40 20 20 Greatest Overweight (x) 5 | . 2 2 5 Average Overweight (x) 2 | . 1 2 3 Largest Inventory Capacity 20 | 6 16 16 20 Average Capacity 15 | 6 12 16 18 Most Carried 19 | 6 11 16 19 Average Carried 12 | 4 7 12 15 Final Capacity 16 | 6 16 16 12 Final Carried 16 | 4 11 16 8 Class Distribution -------------------- 70% | Mutant 29% | Hauler-Mutant Dominant Class ---------------- Mutant | -10/Materials Mutant | -10/Mines Hauler-Mutant | -10/Exiles Resources | -11 -10 -10 -10 ----------- Run | Scr Mat Min Exi Matter Collected 890 | 220 168 102 400 Remotely . | . . . . Salvage Created 383 | . 277 80 26 Parts 33 | . 32 1 . Haulers Intercepted . | . . . . Recyclers Shooed 1 | . 1 . . Parts Field Recycled . | . . . . Retrieved Matter . | . . . . Parts Self-Destructed . | . . . . Prevented . | . . . . Kills | -11 -10 -10 -10 ------- Run | Scr Mat Min Exi Combat Hostiles Destroyed 12 | . 8 1 3 Guns 3 | . 3 . . Cannons 6 | . 5 . 1 AOE 3 | . . 1 2 Classes Destroyed 7 | . 6 . 1 Builder 1 | . 1 . . Tunneler 2 | . 1 1 . Operator 1 | . 1 . . Watcher 3 | . 3 . . Swarmer 6 | . 6 . . Grunt 3 | . 2 1 . Assembled 6 | . . . 6 Best Kill Streak 6 | . 6 1 3 Combat Bots Only 4 | . 4 1 3 Max Kills in Single Turn 3 | . 1 1 3 Gunslinging . | . . . . Exploded 1 | . . 1 1 Melee . | . . . . Uniques/NPCs Destroyed . | . . . . Combat | -11 -10 -10 -10 -------- Run | Scr Mat Min Exi Damage Taken 1111 | . 186 624 301 Core 256 | . 48 150 58 Absorbed by Shields . | . . . . Core Remaining (%) 100 | 100 . . . Volleys Fired 59 | . 39 14 6 Largest 2 | . 2 2 1 Hottest 100 | . 88 88 100 Shots Fired 112 | . 78 28 6 Gun 62 | . 39 23 . Cannon 50 | . 39 5 6 Launcher . | . . . . Special . | . . . . Kinetic 53 | . 39 14 . Thermal 50 | . 39 5 6 Explosive . | . . . . Electromagnetic 9 | . . 9 . Robot Hit Streak 6 | . 5 6 4 Robot Miss Streak 5 | . 5 1 1 Penetration Max . | . . . . Secondary Targets . | . . . . Shots Hit Robots 61 | . 35 22 4 Core Hits 27 | . 15 5 7 Critical Hits . | . . . . Critical Kills . | . . . . Critical Parts Destroyed . | . . . . Melee Attacks . | . . . . Impact . | . . . . Slashing . | . . . . Piercing . | . . . . Sneak Attacks . | . . . . Combat Hostiles . | . . . . Follow-up Attacks . | . . . . Damage Inflicted 1675 | . 670 314 691 Guns 435 | . 236 199 . Cannons 652 | . 429 82 141 Explosions 583 | . . 33 550 Melee . | . . . . Ramming 5 | . 5 . . Kinetic 333 | . 236 97 . Thermal 1235 | . 429 115 691 Explosive . | . . . . Electromagnetic 102 | . . 102 . Impact . | . . . . Slashing . | . . . . Piercing . | . . . . Highest Corruption . | . . . . Average Corruption . | . . . . Corruption Purged . | . . . . Overload Shots . | . . . . Overflow Damage 55 | . 6 . 49 Projectiles 6 | . 6 . . Explosions 49 | . . . 49 Melee . | . . . . Knockbacks . | . . . . Impact . | . . . . Kinetic . | . . . . Secondary . | . . . . Self-Inflicted Damage 44 | . 2 42 . Shots 1 | . . 1 . Rammed 1 | . 1 . . Targets Rammed 1 | . 1 . . Kicked . | . . . . Crushed . | . . . . Highest Temperature 208 | . 193 208 42 Average Temperature 75 | . 63 123 22 Received Heat Transfer 132 | . 12 120 . Effects 1 | . . 1 . Energy Bleed 1 | . . 1 . Siege Activations . | . . . . Robots Corrupted . | . . . . Combat Hostiles . | . . . . Parts Fried . | . . . . Impact Corruptions . | . . . . Robots Melted . | . . . . Combat Hostiles . | . . . . Parts Melted . | . . . . Heat Transferred 1512 | . 777 148 587 Parts Sabotaged . | . . . . Parts Stolen . | . . . . Parts Stripped . | . . . . Power Chain Reactions 1 | . . 1 . Missiles Intercepted . | . . . . Alert | -11 -10 -10 -10 ------- Run | Scr Mat Min Exi Peak Influence 271 | . 271 30 . Average Influence 44 | . 78 6 . Maximum Alert Level 1 | . 1 . . Low Security (%) 94 | 100 90 100 . Level 1 5 | . 9 . . Level 2 . | . . . . Level 3 . | . . . . Level 4 . | . . . . Level 5 . | . . . . High Security . | . . . . Max Security . | . . . . Squads Dispatched 1 | . 1 . . Investigation . | . . . . Extermination . | . . . . Reinforcement 1 | . 1 . . Assault . | . . . . Garrison . | . . . . Intercept . | . . . . Construction Impeded . | . . . . Haulers Reinforced . | . . . . Stealth | -11 -10 -10 -10 --------- Run | Scr Mat Min Exi Distress Signals 1 | . 1 . . Communications Jammed . | . . . . Distress Signals . | . . . . Times Spotted 24 | . 15 4 5 Peak Tracking Total 6 | . 4 2 6 Tactical Retreats . | . . . . Traps | -11 -10 -10 -10 ------- Run | Scr Mat Min Exi Traps Triggered 1 | . 1 . . Indirectly . | . . . . Trap Hack Attempts . | . . . . Triggered . | . . . . Disarmed . | . . . . Reprogrammed . | . . . . Reused . | . . . . Traps Extracted . | . . . . Installed . | . . . . Triggered . | . . . . Machines | -11 -10 -10 -10 ---------- Run | Scr Mat Min Exi Machines Disabled 5 | . 2 . 3 Max in Single Turn 2 | . 1 . 2 Machines Sabotaged . | . . . . Garrisons Compromised . | . . . . Overloaded Fab Kills . | . . . . Fab Network Shutdowns . | . . . . Hacking | -11 -10 -10 -10 --------- Run | Scr Mat Min Exi Machines Accessed 8 | . 5 1 2 Terminals 5 | . 5 . . Fabricators . | . . . . Repair Stations . | . . . . Recycling Units . | . . . . Scanalyzers . | . . . . Garrison Access . | . . . . Total Hacks 18 | . 15 1 2 Successful 9 | . 6 1 2 Failed 9 | . 9 . . Catastrophic 1 | . 1 . . Database Lockouts . | . . . . Manual 16 | . 15 . 1 Terminals 15 | . 15 . . Fabricators . | . . . . Repair Stations . | . . . . Recycling Units . | . . . . Scanalyzers . | . . . . Garrison Access . | . . . . Terminal Hacks 4 | . 1 1 2 Record 1 | . . . 1 Open Door 1 | . . 1 . Unreport Threat 1 | . 1 . . EX-Prototype ID Bank 1 | . . . 1 Fabricator Hacks . | . . . . Repair Station Hacks . | . . . . Recycling Unit Hacks . | . . . . Scanalyzer . | . . . . Garrison Access Hacks . | . . . . Unauthorized Hacks 5 | . 5 . . Terminals 5 | . 5 . . Track 1 | . 1 . . Assimilate 1 | . 1 . . Botnet 2 | . 2 . . Operators 1 | . 1 . . Fabricators . | . . . . Repair Stations . | . . . . Recycling Units . | . . . . Scanalyzers . | . . . . Garrison Access . | . . . . Data Cores Recovered . | . . . . Used . | . . . . Hacking Detections 5 | . 5 . . Full Trace Events . | . . . . Feedback Events . | . . . . Feedback Blocked . | . . . . Robot Schematics Acquired . | . . . . Robots Built . | . . . . Matter . | . . . . Time . | . . . . Total Robot Build Rating . | . . . . Part Schematics Acquired . | . . . . Parts Built . | . . . . Matter . | . . . . Time . | . . . . Total Part Build Rating . | . . . . Parts Repaired . | . . . . Time . | . . . . Parts Recycled . | . . . . Recycled Matter . | . . . . Retrieved Matter . | . . . . Retrieved Components . | . . . . Parts Scanalyzed . | . . . . Part Schematics Acquired . | . . . . Parts Damaged . | . . . . Bothacking | -11 -10 -10 -10 ------------ Run | Scr Mat Min Exi Used RIF Installer . | . . . . Robots Hacked . | . . . . Non-combat . | . . . . Combat . | . . . . Robot Hacks Applied . | . . . . Relay Couplers Released . | . . . . Robots Rewired . | . . . . Allies Hacked . | . . . . Hacks Repelled . | . . . . Allies | -11 -10 -10 -10 -------- Run | Scr Mat Min Exi Total Allies . | . . . . Largest Group . | . . . . Highest-Rated Group . | . . . . Highest-Rated Ally . | . . . . Total Orders . | . . . . Ally Attacks . | . . . . Total Damage . | . . . . Kills . | . . . . Allies Corrupted . | . . . . Allies Melted . | . . . . Intel | -11 -10 -10 -10 ------- Run | Scr Mat Min Exi Robot Analysis Total . | . . . . Derelict Logs Recovered 3 | . . 3 . Drone Launches . | . . . . Drone Recoveries . | . . . . Exploration | -11 -10 -10 -10 ------------- Run | Scr Mat Min Exi Turns Passed 2363 | 6 743 671 943 Spaces Moved 1606 | 4 483 500 619 Core . | . . . . Treads 119 | . 59 8 52 Legs . | . . . . Wheels 1487 | 4 424 492 567 Hover . | . . . . Flight . | . . . . Fastest Speed 100 | 100 100 120 120 Average Speed 128 | 100 117 121 143 Slowest Speed 240 | 100 200 200 240 Overloaded Moves . | . . . . Propulsion Burnouts . | . . . . Robots Hopped . | . . . . Cave-ins Triggered . | . . . . Exploration Rate (%) 54 | 2 65 61 88 Regions Visited 3 Branch Regions 2 Pre-discovered Areas 2 | . . 1 1 Known Exits Taken . | . . . . Unknown Exits Taken 3 | 1 1 1 . Scrap Searched 1 | . . 1 . Spaces Dug . | . . . . Terrain Destroyed 39 | . . 9 30 Melee . | . . . . Projectile 1 | . . . 1 AOE 38 | . . 9 29 Actions | -11 -10 -10 -10 --------- Run | Scr Mat Min Exi Total 1783 | 7 577 537 662 Wait 50 | . 33 11 6 Move 1603 | 3 482 499 619 Hop . | . . . . Pick Up 23 | . 10 8 5 Fast Attach 1 | . 1 . . Attach 17 | 2 3 3 9 Detach 3 | . . . 3 Swap 11 | . 5 . 6 Drop 15 | 2 3 2 8 Fire 59 | . 39 14 6 Melee . | . . . . Ram 1 | . 1 . . Kick . | . . . . Crush . | . . . . Escape Stasis . | . . . . Rewire . | . . . . Trap . | . . . . Miscellaneous . | . . . . Route ------- -11/Scrapyard -10/Materials (discovered 3 exits: *Mat x2 / *Min) -10/Mines (discovered 3 exits: *Mat x2 / *Exi) -10/Exiles (discovered 2 exits: [*Min x2]) History --------- Turn | Location | Event 4 | -11/Scrapyard | Discovered new exit (range 2) 7 | -11/Scrapyard | Entered Materials 16 | -10/Materials | Discovered new exit (range 15) 306 | -10/Materials | Build established: Mutant 432 | -10/Materials | Discovered new exit (range 15) 661 | -10/Materials | Discovered new exit (range 3) 750 | -10/Materials | Entered Mines 861 | -10/Mines | Deemed a non-threat by the Exiles lab entrance 862 | -10/Mines | Discovered new exit (range 5) 923 | -10/Mines | Learned location of Storage (-8) 969 | -10/Mines | Identified exit to Materials 1012 | -10/Mines | Discovered exit to Materials (range 3) 1258 | -10/Mines | Met a Derelict who couldn't figure out how to use a Trap Extractor 1372 | -10/Mines | Assembled infested the area 1416 | -10/Mines | Core integrity fell below 50% 1421 | -10/Mines | Entered Exiles 1450 | -10/Exiles | Met 8R-AWN 1468 | -10/Exiles | Met EX-HEX 1554 | -10/Exiles | Met EX-DEC 1631 | -10/Exiles | Visited The Gauntlet 1771 | -10/Exiles | Learned location of Zion (-7) 1820 | -10/Exiles | Build established: Hauler-Mutant 1828 | -10/Exiles | Discovered new exit (range 14) 1999 | -10/Exiles | Met EX-BIN 2017 | -10/Exiles | Aligned with FarCom system 2018 | -10/Exiles | Given EX-Vault access code 2051 | -10/Exiles | Opened EX-Vault 2062 | -10/Exiles | Found YOLO Cannon 2065 | -10/Exiles | Found Gui. Plasma Cannon 2071 | -10/Exiles | Found 0b10 Alert Chip 2105 | -10/Exiles | Warned to stay clear of 0b10 Research branches 2202 | -10/Exiles | Discovered new exit (range 14) 2331 | -10/Exiles | Attacked by the Exiles 2337 | -10/Exiles | Core integrity fell below 20% 2364 | -10/Exiles | Destroyed by 8R-AWN with 8R-AWN's Boregun Last Messages --------------- 02344_ HV Slug penetrates Wall. 02346_ HV Slug penetrates as-07496. 02346_ as-07496 suffers critical hit. 02346_ as-07496 destroyed. 02346_ HV Slug penetrates EX-HEX. 02346_ HV Slug penetrates Wall. 02346_ Penetrated by HV Slug. 02348_ HV Slug penetrates Machine. 02350_ Penetrated by HV Slug. 02350_ HV Slug penetrates Machine. 02350_ Penetrated by HV Slug. 02357_ Critical hit. 02357_ Hvy. Particle Cannon destroyed. 02359_ Penetrated by HV Slug. 02359_ Critical hit. 02359_ Lgt. Treads destroyed. 02359_ HV Slug penetrates Machine. 02362_ Penetrated by HV Slug. 02364_ Heat Sink destroyed. 02364_ Penetrated by HV Slug. Map ----- +----------------------------------------------------+ | """#????????????????????????????????????? | | """#????????????????????????????????????? | | """"????????????????????????????????????? | | """#????????????????????????????????????? | | "X" """"????????????????????????????????????? | | """ #????????????????????????????????????? | | """""""""#????????????????????????????????????? | | ###########????????????????????????????????????? | | #??????????????????????????????????????????????? | | #??????????????????????????????????????????????? | | ##?????????????????????????????????????????????? | | ##???###########??????????????????????????????? | | #####"""""""""##?????????????????????????????? | | " """ """"##????????????????????????????? | | "" " #????????????????????????????? | | " """#????????????????????????????? | | " "#???????????#####????????????? | | " "##?????????##" #????????????? | | ""###???????#" #????????????? | | """#??????##" ##???????????? | | "" "#????### ###????????## | | ###""" ##???# ########## | | ??##""" ##?## #""""## | | ???#"""" ### * | | ??##"" % g ## * | | ###"""" @ #### | | """ ""#?#"""""#### | | " #"""##?#######??#### | | ######??????????????#### | | ##??????????????????????? | | ##???????????????????????? | | "" "#????????????????????????? | | ##""" " " " ; %% ##????????????????????????? | | ######""" """#; #?????????????????????????? | | #????###""""##;; ;??????????????????????????? | | ####???####### #??????????????????????????? | | "!#?????????? ##???????????????????????????? | | !#???????????? #?????????????????????????????? | | "#?????????????????????????????????????????????? | | "!"#?????????????????????????????????????????????? | | ####?????????????????????????????????????????????? | | ?????????????????????????????????????????????????? | | ?????????????????????????????????????????????????? | | ?????????????????????????????????????????????????? | | ?????????????????????????????????????????????????? | | ?????????????????????????????????????????????????? | | ?????????????????????????????????????????????????? | | ?????????????????????????????????????????????????? | | ?????????????????????????????????????????????????? | | ?????????????????????????????????????????????????? | +----------------------------------------------------+ Best States ------------- Heat Dissipation 35 Energy Generation 10 Energy Capacity 250 Matter Stores 300 Matter Capacity 300 Sight Range 16 Terrain Scan Density 10 Evasion (%) 40 Recoil Reduction 2 Item Schematics ----------------- None Robot Schematics ------------------ None Fabricated ------------ Nothing Alien Tech Used ----------------- None Achievements -------------- None Challenges ------------ None Game ------ Seed HardenedMobileFlakker Manual? 0 Play Time 00:20:40 Cumulative 14.7 hours Start 2020.07.16 @ 12:23:17 End 2020.07.16 @ 12:42:04 Sessions 1 Manual Loads 0 Difficulty Rogue Special Mode None Game No. 32 Rogue 30 Adventurer 1 Explorer 1 Win Type - Total 0 Types 0/0/0/0/0/0/0 Lore% 22 Gallery% 26 Achievement% 19 Wizard Run 0 Options --------- ASCII 0 Keyboard 0 Movement Mouse Keybinds 0 Fullscreen 2 Font 24/Terminus Map View 76x50 Tactical HUD 1 Map Filters NONE Filters NONE Steam 1 RUN: cc37094a-64d3-4268-b07d-f776fc030c61